[Event "Germany Countries-chT Youth 2022"]
[Site "Wiesbaden"]
[Date "2022.10.02"]
[Round "4"]
[White "Braeutigam, Katerina"]
[Black "Glowiak, Alexandra"]
[Result "1-0"]
[ECO "C78"]
[WhiteElo "1873"]
[BlackElo "1602"]
[Annotator "NA RC COMBH"]
[PlyCount "83"]
[EventDate "2022.09.28"]
[EventType "team-tourn"]
[EventRounds "7"]
[EventCountry "GER"]
[SourceTitle "playchess.com"]
[Source "ChessBase"]
[SourceQuality "1"]
[TimeControl "40/5400+30:1800+30"]

1. e4 {[%emt 0:00:02]} e5 {[%emt 0:00:07]} 2. Nf3 {[%emt 0:00:04]} Nc6 {[%emt 0:00:04]} 3. Bb5 {[%emt 0:00:07]} a6 {[%emt 0:00:04]} 4. Ba4 {[%emt 0:00:05]} Nf6 {[%emt 0:00:09]} 5. O-O {[%emt 0:00:07]} b5 {[%emt 0:00:04]} 6. Bb3 {[%emt 0:00:05]} Be7 {[%emt 0:00:16] 6...Be7 was played by the boomers.} 7. a4 {[%emt 0:00:19]} b4 {[%emt 0:04:10]} 8. a5 {[%emt 0:00:15]} d6 {[%emt 0:01:22]} 9. d4 {[%emt 0:08:14] [#]} Bd7 $146 {[%emt 0:07:54]} ({Much less strong is} 9... Nxe4 10. Bd5 Qd7 11. dxe5 $16 (11. Bxe4 d5 $11)) (9... exd4 $11 10. Nxd4 Nxd4 11. Qxd4 Rb8) ({Predecessor:} 9... O-O 10. d5 Na7 11. Re1 c6 12. Nbd2 Bb7 13. Nf1 Nb5 14. Be3 Qc8 15. Bg5 cxd5 16. exd5 {1-0 (49) Granda Zuniga,J (2648)-Batsiashvili,N (2480) Douglas 2016}) 10. Re1 {[%emt 0:07:19]} O-O {[%emt 0:01:42]} 11. d5 {[%emt 0:04:53]} Na7 {[%emt 0:02:04]} 12. Bc4 {[%emt 0:07:18]} (12. Be3 $14 {should be considered.}) 12... Nb5 {[%emt 0:13:21]} ({Black should play} 12... c6 $11) 13. Bd2 {[%emt 0:11:36]} c5 {[%emt 0:12:53]} 14. Qe2 {[%emt 0:02:47]} Qc7 {[%emt 0:06:19]} 15. c3 {[%emt 0:04:47]} bxc3 {[%emt 0:01:30]} 16. Nxc3 {[%emt 0:02:11]} Rfb8 {[%emt 0:01:06]} (16... Nd4 $11 17. Qd3 Rfb8) 17. Na4 {[%emt 0:04:07]} Ra7 {[%emt 0:12:15]} 18. Nb6 {[%emt 0:04:23]} Be8 {[%emt 0:01:13]} 19. b4 {[%emt 0:21:22]} Nd7 {[%emt 0:10:07]} 20. Nxd7 {[%emt 0:04:50]} Bxd7 {[%emt 0:00:13]} 21. bxc5 {[%emt 0:02:02]} dxc5 {[%emt 0:01:06]} 22. h3 {[%emt 0:07:35]} Bd6 {[%emt 0:07:07]} 23. Rec1 {[%emt 0:02:24]} Qd8 {[%emt 0:02:36]} 24. Be3 {[%emt 0:01:55]} Rc7 {[%emt 0:04:20]} 25. Nd2 {[%emt 0:02:19]} Qe7 {[%emt 0:05:10]} 26. Bd3 {[%emt 0:00:59]} Rcb7 {[%emt 0:01:15]} 27. f3 {[%emt 0:01:17]} Bc8 {[%emt 0:03:06]} (27... Nd4 $11 28. Qd1 (28. Bxd4 exd4 29. e5 Qxe5 $11) 28... Bb5) 28. Qf2 {[%emt 0:00:30]} Rc7 {[%emt 0:00:27]} 29. Nc4 {[%emt 0:00:27]} Nd4 {[%emt 0:00:25]} 30. Rcb1 {[%emt 0:00:28]} Rxb1+ {[%emt 0:01:18]} 31. Rxb1 {[%emt 0:00:01]} Ra7 {[%emt 0:01:11]} 32. Nxd6 {[%emt 0:00:53]} Qxd6 {[%emt 0:00:04]} 33. Rb6 {[%emt 0:00:02]} Qc7 {[%emt 0:00:32]} 34. Qf1 {[%emt 0:01:04]} Nb5 {[%emt 0:01:25]} 35. Qc1 {[%emt 0:00:17]} Nd4 {[%emt 0:00:27]} 36. Bxd4 {[%emt 0:00:25]} exd4 {[%emt 0:00:25]} 37. Rc6 {[%emt 0:00:12]} Qb7 {[%emt 0:00:40]} 38. Qxc5 {[%emt 0:00:36]} Bd7 {[%emt 0:00:13]} 39. Rb6 {[%emt 0:00:36]} Qa8 {[%emt 0:00:07]} 40. Qxd4 {[%emt 0:00:56]} (40. Qb4 $142) 40... Bb5 {[%emt 0:00:30]} 41. Bxb5 {[%emt 0:03:15]} axb5 $18 {[%emt 0:00:22]} 42. Qe5 {[%emt 0:01:33]} 1-0

[Event "Germany Countries-chT Youth 2022"]
[Site "Wiesbaden"]
[Date "2022.10.02"]
[Round "4"]
[White "Bock, Marlon"]
[Black "Haubold, Sebastian Marcel"]
[Result "1/2-1/2"]
[ECO "A48"]
[WhiteElo "1866"]
[BlackElo "2039"]
[Annotator "TA"]
[PlyCount "120"]
[EventDate "2022.09.28"]
[EventType "team-tourn"]
[EventRounds "7"]
[EventCountry "GER"]
[SourceTitle "playchess.com"]
[Source "ChessBase"]
[SourceQuality "1"]
[TimeControl "40/5400+30:1800+30"]

{[%evp 10,120,-12,-12,0,0,0,0,0,0,0,0,0,0,0,0,0,0,0,0,0,0,30,28,46,46,31,-14,25,35,25,0,44,25,104,-18,2,0,27,18,33,8,33,10,156,157,144,149,349,310,328,314,327,322,593,599,592,570,529,528,490,487,542,526,541,441,525,283,295,287,295,295,361,207,193,33,243,241,238,227,246,240,259,182,191,196,189,80,80,79,79,80,79,79,80,79,84,71,80,70,70,70,70,69,70,70,70,70,70,70,70,70,70]} 1. d4 {[%emt 0:00:03]} Nf6 {[%emt 0:00:10]} 2. Nf3 {[%emt 0:00:03]} g6 {[%emt 0:00:10]} 3. Nc3 {[%emt 0:00:04]} d5 {[%emt 0:00:12]} 4. Bf4 {[%emt 0:00:21]} Bg7 {[%emt 0:00:21]} 5. Qd2 {[%emt 0:00:37]} O-O {[%emt 0:00:10]} 6. Bh6 {[%emt 0:00:24]} Ne4 {[%emt 0:00:22] D00: 1 d4 d5: Unusual lines.} 7. Nxe4 {[%emt 0:00:27]} dxe4 {[%emt 0:00:12]} 8. Bxg7 {[%emt 0:00:14]} Kxg7 {[%emt 0:00:10] The position is equal.} 9. Ng5 {[%emt 0:00:30][%cal Bf3g5,Bg5e4,Be4c5,Bc5e6][%mdl 32]} e5 {[%emt 0:00:42]} 10. dxe5 {[%emt 0:00:44]} Qxd2+ {[%emt 0:00:27]} 11. Kxd2 {[%emt 0:00:04][%cal Be1d2,Bd2e3,Be3f4,Bf4g3][%mdl 32]} Rd8+ {[%emt 0:00:11]} 12. Ke3 {[%emt 0:00:17]} Nc6 {[%emt 0:01:05]} 13. Nxe4 {[%emt 0:01:07]} Nxe5 {[%emt 0:00:32]} 14. Kf4 {[%emt 0:00:52]} f6 {[%emt 0:07:47]} 15. f3 {[%emt 0:04:02] [#]} g5+ $146 {[%emt 0:11:35]} (15... Bf5 $5 {[%cal Rf5e4]}) ({Predecessor:} 15... Nc4 16. b3 g5+ 17. Kg3 Ne3 18. Kf2 Nd1+ 19. Ke1 Ne3 20. Kf2 Nd1+ 21. Ke1 Ne3 22. Kf2 {½-½ (22) Schrancz,I (2430)-Marton Bardocz,S (2313) LSS email 2008}) 16. Kg3 {[%emt 0:01:45]} Bf5 {[%emt 0:02:03]} 17. Nc5 {[%emt 0:13:42]} Rd2 {[%emt 0:07:36]} 18. Rc1 {[%emt 0:13:50]} (18. Nb3 $5 {[%cal Rb3d2]} Rd6 19. e4 $14) 18... Rxc2 {[%emt 0:08:58]} (18... Bxc2 {keeps more tension.} 19. h4 Kg6 20. e3 Re8) 19. Rxc2 {[%emt 0:03:07]} Bxc2 {[%emt 0:01:04]} 20. h4 {[%emt 0:13:22]} b6 {[%emt 0:15:09]} 21. Ne6+ {[%emt 0:03:53]} Kf7 {[%emt 0:02:20]} (21... Kg6 $1 $11) 22. Nd4 {[%emt 0:03:15]} ({White must play} 22. Nxc7 $16 Rc8 23. Nb5) 22... Bb1 {[%emt 0:06:41]} 23. hxg5 {[%emt 0:02:19] aiming for e4.} fxg5 {[%emt 0:01:00]} (23... Rd8 $5 {[%cal Rd8d4]}) 24. e4 {[%emt 0:05:30]} Kg6 {[%emt 0:09:27]} 25. f4 {[%emt 0:08:24]} (25. Be2 {with more complications.} Bxa2 26. f4 gxf4+ 27. Kxf4 Kf6 28. Rxh7 c5 29. Nf5) 25... gxf4+ {[%emt 0:00:56]} 26. Kxf4 {[%emt 0:00:14] And now Bb5 would win.} Nd3+ {[%emt 0:00:37]} (26... Kf6 $11) 27. Bxd3 $16 {[%emt 0:03:16]} Bxd3 {[%emt 0:00:23][%mdl 4096] Endgame KRB-KRN} 28. Nf5 $1 {[%emt 0:02:12] White is more active.} Rh8 $2 {[%emt 0:07:55]} (28... h5 $16 {is a better defense.}) 29. Rh6+ $18 {[%emt 0:01:18]} Kf7 {[%emt 0:00:02]} 30. Rc6 {[%emt 0:00:15]} Re8 {[%emt 0:01:40]} 31. Rxc7+ {[%emt 0:01:27]} Kf6 $2 {[%emt 0:02:01]} (31... Kg8 {was worth a try.} 32. Nd6 (32. Rxa7 Rxe4+ 33. Kg5 Re2 $16) 32... Rd8) 32. Rc6+ {[%emt 0:05:32]} Re6 {[%emt 0:00:25]} 33. e5+ {[%emt 0:00:36]} Kf7 {[%emt 0:00:10]} 34. Rc7+ {[%emt 0:02:02]} Kg8 {[%emt 0:02:12]} 35. Rxa7 {[%emt 0:01:51]} Re8 {[%emt 0:03:40]} 36. Nd6 {[%emt 0:02:57]} Rf8+ {[%emt 0:00:19]} 37. Ke3 {[%emt 0:01:36]} Bg6 {[%emt 0:02:36]} 38. Kd4 {[%emt 0:01:11] Black must now prevent e6.} Rf2 {[%emt 0:00:15]} 39. e6 {[%emt 0:04:22]} Rxg2 {[%emt 0:00:50]} 40. b3 {[%emt 0:01:55]} h5 {[%emt 0:01:02]} 41. Ke3 {[%emt 0:08:20]} (41. Ke5 $142) 41... h4 {[%emt 0:03:21] [#]} 42. Ra4 $2 {[%emt 0:03:06]} ({White has to play} 42. Ra8+ $1 $18 Kh7 43. Ra4) 42... Rg5 $2 {[%emt 0:02:57]} ({Black should play} 42... h3 $14) 43. Rxh4 {[%emt 0:06:59] Hoping for Kd4.} Re5+ {[%emt 0:00:05]} 44. Kd4 {[%emt 0:00:39]} Rxe6 {[%emt 0:00:08]} 45. Kd5 {[%emt 0:00:25]} Re2 {[%emt 0:00:59]} 46. Ra4 {[%emt 0:01:33]} Bb1 {[%emt 0:02:02] [#]} 47. a3 {[%emt 0:01:25]} Ba2 {[%emt 0:06:59]} 48. Rb4 {[%emt 0:03:24]} (48. Rg4+ $18 Kh7 49. Rg3) 48... Rd2+ $16 {[%emt 0:00:51]} 49. Kc6 {[%emt 0:00:57] Threatens to win with Nb5.} Rd3 {[%emt 0:00:03]} 50. Rg4+ {[%emt 0:01:22]} Kf8 {[%emt 0:00:01]} 51. b4 {[%emt 0:00:43] Nb5 is the strong threat.} Rxa3 {[%emt 0:00:10]} 52. Kxb6 {[%emt 0:00:18]} Ke7 {[%emt 0:02:07]} 53. Nb7 {[%emt 0:00:59]} Bd5 {[%emt 0:03:29]} 54. Rd4 {[%emt 0:01:01]} Bg2 {[%emt 0:01:01] White is slightly better.} 55. b5 {[%emt 0:00:23]} Bf1 {[%emt 0:00:01]} 56. Na5 {[%emt 0:00:37]} Bxb5 {[%emt 0:00:05]} 57. Kxb5 {[%emt 0:00:23]} Rh3 {[%emt 0:00:28]} 58. Nc4 {[%emt 0:02:55]} Rh6 {[%emt 0:03:07]} 59. Nb6 {[%emt 0:00:46]} Ke6 {[%emt 0:01:05]} 60. Kc5 {[%emt 0:00:53] Threatening mate with Rd6+.} Ke5 {Prevents Rd6. White really could win this.  Weighted Error Value: White=0.25 (precise) /Black=0.33} 1/2-1/2

[Event "Germany Countries-chT Youth 2022"]
[Site "Wiesbaden"]
[Date "2022.10.02"]
[Round "4"]
[White "Basovskiy, Jana"]
[Black "Nechitailo, Nikita"]
[Result "1/2-1/2"]
[ECO "B31"]
[WhiteElo "1858"]
[BlackElo "1651"]
[Annotator "NA RC COMBH"]
[PlyCount "82"]
[EventDate "2022.09.28"]
[EventType "team-tourn"]
[EventRounds "7"]
[EventCountry "GER"]
[SourceTitle "playchess.com"]
[Source "ChessBase"]
[SourceQuality "1"]
[TimeControl "40/5400+30:1800+30"]

1. e4 {[%emt 0:00:03]} c5 {[%emt 0:00:04]} 2. Nf3 {[%emt 0:00:03]} Nc6 {[%emt 0:00:05]} 3. Bb5 {[%emt 0:00:06]} g6 {[%emt 0:00:04]} 4. Bxc6 {[%emt 0:00:27]} dxc6 {[%emt 0:00:04]} 5. O-O {[%emt 0:00:14]} Bg7 {[%emt 0:00:26]} 6. h3 {[%emt 0:01:11]} e5 {[%emt 0:01:05]} 7. d3 {[%emt 0:00:13]} Qc7 {[%emt 0:02:11]} 8. Be3 {[%emt 0:00:23]} b6 {[%emt 0:00:05]} 9. Nc3 {[%emt 0:01:41]} Nf6 {[%emt 0:00:14]} 10. Qd2 {[%emt 0:03:18]} Nd7 {[%emt 0:00:59]} 11. a3 {[%emt 0:01:33]} Nf8 {[%emt 0:00:27]} 12. b4 {[%emt 0:05:20]} Ne6 {[%emt 0:01:40]} 13. Na4 {[%emt 0:04:01]} (13. bxc5 $14 bxc5 14. Na4) 13... Nd4 {[%emt 0:04:47]} 14. Qd1 {[%emt 0:10:22]} cxb4 {[%emt 0:09:46]} 15. axb4 {[%emt 0:00:08]} O-O {[%emt 0:00:49]} 16. Nd2 {[%emt 0:18:20]} f5 {[%emt 0:10:37]} 17. f3 {[%emt 0:01:24]} f4 {[%emt 0:02:18]} 18. Bf2 {[%emt 0:00:08]} Be6 {[%emt 0:01:47]} 19. c3 {[%emt 0:15:37]} Nb5 {[%emt 0:00:05]} 20. Nb3 {[%emt 0:00:12]} Rad8 $11 {[%emt 0:01:44]} 21. Qc2 {[%emt 0:00:46]} Qf7 {[%emt 0:04:01]} 22. c4 {[%emt 0:01:17]} g5 {[%emt 0:09:17]} 23. Rfb1 {[%emt 0:01:31]} Nd4 {[%emt 0:01:47]} 24. Nxd4 {[%emt 0:06:18]} exd4 {[%emt 0:00:20]} 25. Qa2 {[%emt 0:00:55]} g4 {[%emt 0:02:40]} 26. hxg4 {[%emt 0:00:40]} h5 {[%emt 0:00:05]} 27. gxh5 {[%emt 0:09:42]} Qxh5 {[%emt 0:00:27]} 28. Kf1 {[%emt 0:00:16]} b5 {[%emt 0:06:46]} 29. Nb2 {[%emt 0:02:17]} Rb8 {[%emt 0:12:03]} 30. Qb3 {[%emt 0:04:51]} c5 {[%emt 0:07:05]} 31. Qc2 {[%emt 0:01:17]} cxb4 {[%emt 0:01:18]} 32. cxb5 {[%emt 0:00:31]} Rfc8 {[%emt 0:03:04]} 33. Qd2 {[%emt 0:02:10]} Rxb5 {[%emt 0:02:09]} 34. Rc1 {[%emt 0:00:42]} Rxc1+ {[%emt 0:02:03]} 35. Rxc1 {[%emt 0:00:09]} Rc5 {[%emt 0:00:41]} 36. Rxc5 {[%emt 0:05:45]} Qxc5 {[%emt 0:00:02]} 37. Qxf4 {[%emt 0:00:12]} Qc2 {[%emt 0:01:36]} 38. Qb8+ {[%emt 0:00:50]} Kh7 {[%emt 0:01:47]} 39. Qxb4 {[%emt 0:02:31]} a5 {[%emt 0:02:34]} 40. Qb5 {[%emt 0:00:53]} Bb3 {[%emt 0:01:35]} 41. Qh5+ {[%emt 0:30:36]} Kg8 {[%emt 0:30:15]} 1/2-1/2

[Event "Germany Countries-chT Youth 2022"]
[Site "Wiesbaden"]
[Date "2022.10.02"]
[Round "4"]
[White "Jaskulski, Jan"]
[Black "Feidt, Jonas"]
[Result "0-1"]
[ECO "B10"]
[WhiteElo "1849"]
[BlackElo "1908"]
[Annotator "TA"]
[PlyCount "58"]
[EventDate "2022.09.28"]
[EventType "team-tourn"]
[EventRounds "7"]
[EventCountry "GER"]
[SourceTitle "playchess.com"]
[Source "ChessBase"]
[SourceQuality "1"]
[TimeControl "40/5400+30:1800+30"]

{[%evp 10,57,16,18,20,10,36,0,0,0,29,31,43,0,0,0,0,6,12,0,3,-8,-2,-24,0,-69,-58,-109,-72,-93,-105,-141,-122,-231,-220,-239,-229,-266,-243,-229,-197,-225,-170,-279,-285,-29997,-29998,-29998,-29999,-29999]} 1. e4 {[%emt 0:00:22]} c6 {[%emt 0:00:10]} 2. Nf3 {[%emt 0:00:19]} d5 {[%emt 0:00:07]} 3. Nc3 {[%emt 0:00:04]} dxe4 {[%emt 0:00:17]} 4. Nxe4 {[%emt 0:00:02]} Nf6 {[%emt 0:00:08]} 5. Qe2 {[%emt 0:00:43]} Nxe4 {[%emt 0:00:21]} 6. Qxe4 {[%emt 0:00:08]} Qa5 {[%emt 0:02:01] B11: Caro-Kann: Two Knights Variation.} 7. b4 {[%emt 0:00:52]} Qf5 {[%emt 0:03:43] [#]} 8. Qd4 $146 {[%emt 0:36:25]} ({Predecessor:} 8. Qe3 Qe6 9. Be2 Qxe3 10. fxe3 f6 11. a4 e5 12. Ba3 Bf5 13. d3 Nd7 14. O-O {0-1 (43) Jones,G (2683)-Howell,D (2676) London 2019}) 8... Nd7 {[%emt 0:09:49] The position is equal.} 9. Bb2 {[%emt 0:06:27]} Nf6 {[%emt 0:10:56]} 10. Bd3 {[%emt 0:07:11]} Qd5 {[%emt 0:15:21]} 11. c4 {[%emt 0:10:52]} Qxd4 {[%emt 0:01:56]} 12. Bxd4 {[%emt 0:00:22]} g6 {[%emt 0:13:56]} 13. O-O {[%emt 0:10:11]} Bg7 {[%emt 0:00:26]} 14. a4 {[%emt 0:04:22]} O-O {[%emt 0:02:17]} 15. Be2 {[%emt 0:07:59]} Rd8 {[%emt 0:03:01]} 16. d3 {[%emt 0:01:19] Prevents Ne4.} Bg4 {[%emt 0:05:14] [#] ...Bxf3 is the strong threat.} 17. Be5 {[%emt 0:06:20]} ({White should try} 17. Be3 $1 $11) 17... Nh5 {[%emt 0:07:55] Hoping for ...Bxe5.} 18. Bxg7 {[%emt 0:00:26]} ({White should play} 18. Rfe1 $15) 18... Kxg7 {[%emt 0:00:10]} 19. Rfd1 {[%emt 0:01:02]} Nf4 $36 {[%emt 0:01:35][%mdl 2048] Black is really pushing.} 20. Ra2 {[%emt 0:00:08]} Bxf3 {[%emt 0:07:14] Black is much more active.} 21. gxf3 {[%emt 0:01:42]} (21. Bxf3 $17 {was forced.} Rxd3 22. Rxd3 Nxd3 23. b5) 21... Rd4 $19 {[%emt 0:02:43]} 22. Kf1 {[%emt 0:01:49]} Rad8 {[%emt 0:00:55]} 23. Ra3 {[%emt 0:00:48]} R8d7 {[%emt 0:06:24]} 24. b5 {[%emt 0:00:32]} Kf6 {[%emt 0:01:16]} 25. Ke1 {[%emt 0:01:40]} Ke5 {[%emt 0:01:38]} 26. Kd2 {[%emt 0:00:38]} (26. bxc6 {might work better.} bxc6 27. Rb1) 26... Rxc4 {[%emt 0:01:30]} 27. Ke3 $2 {[%emt 0:00:31]} (27. bxc6 $19 Rxc6 28. Rb1) 27... Rc2 {[%emt 0:00:24][%csl Gf4][%cal Rc2e2] Black mates.} 28. d4+ {[%emt 0:00:33] [#]} Rxd4 $3 {[%emt 0:00:35][%csl Gf4][%cal Rc2e2][%mdl 512]} 29. Re1 {[%emt 0:00:32]} (29. a5 Rxe2#) 29... Ng2# {[%emt 0:00:19] Weighted Error Value: White=0.60/Black=0.13 (very precise)} 0-1

[Event "Germany Countries-chT Youth 2022"]
[Site "Wiesbaden"]
[Date "2022.10.02"]
[Round "4"]
[White "Kieselbach, Jannik"]
[Black "Semling, Johannes"]
[Result "1/2-1/2"]
[ECO "B90"]
[WhiteElo "1848"]
[BlackElo "1861"]
[Annotator "NA RC COMBH"]
[PlyCount "78"]
[EventDate "2022.09.28"]
[EventType "team-tourn"]
[EventRounds "7"]
[EventCountry "GER"]
[SourceTitle "playchess.com"]
[Source "ChessBase"]
[SourceQuality "1"]
[TimeControl "40/5400+30:1800+30"]

1. e4 {[%emt 0:00:06]} c5 {[%emt 0:00:06]} 2. Nf3 {[%emt 0:00:11]} d6 {[%emt 0:00:21]} 3. d4 {[%emt 0:00:06]} cxd4 {[%emt 0:00:05]} 4. Nxd4 {[%emt 0:00:04]} Nf6 {[%emt 0:00:13]} 5. Nc3 {[%emt 0:00:07]} a6 {[%emt 0:00:09]} 6. f3 {[%emt 0:00:04]} e6 {[%emt 0:00:22]} 7. Be3 {[%emt 0:00:12] 7.g4 is more fashionable.} h5 {[%emt 0:00:09]} 8. Qd2 {[%emt 0:00:26]} Be7 {[%emt 0:00:27]} 9. O-O-O {[%emt 0:00:36]} b5 {[%emt 0:00:06]} 10. a3 {[%emt 0:02:28]} Bb7 {[%emt 0:00:24]} 11. Nb3 {[%emt 0:06:37]} Nbd7 {[%emt 0:00:36] [#]} 12. Bf4 $146 {[%emt 0:01:58]} ({Predecessor:} 12. h3 Rc8 13. Bd3 Ne5 14. Qf2 Nxd3+ 15. Rxd3 Qc7 16. Rhd1 d5 17. Bb6 Qf4+ 18. Be3 Qc7 19. Bb6 Qf4+ 20. Be3 Qc7 {½-½ (20) Petrusic,T (2278)-Mazi,L (2377) Zadar 2013}) 12... Ne5 {[%emt 0:03:59]} 13. Bxe5 {[%emt 0:03:19]} dxe5 {[%emt 0:00:09]} 14. Qxd8+ {[%emt 0:01:37]} Rxd8 {[%emt 0:02:21]} 15. Rxd8+ {[%emt 0:16:22]} Bxd8 {[%emt 0:03:10]} 16. Nc5 {[%emt 0:01:33]} Bc8 {[%emt 0:00:44]} 17. Nd3 {[%emt 0:02:26]} Nd7 {[%emt 0:05:27]} 18. a4 {[%emt 0:01:45]} bxa4 {[%emt 0:02:52]} 19. Nxa4 {[%emt 0:00:45]} a5 {[%emt 0:03:15]} 20. b3 {[%emt 0:04:15]} Bb7 {[%emt 0:03:58]} 21. Nac5 {[%emt 0:02:29]} Nxc5 {[%emt 0:02:21]} 22. Nxc5 {[%emt 0:00:08]} Bc6 {[%emt 0:00:42]} 23. Bc4 {[%emt 0:01:23]} Bb6 {[%emt 0:02:25]} 24. Nd3 {[%emt 0:01:02]} Bc7 {[%emt 0:00:20]} 25. Kb2 {[%emt 0:00:34]} Ke7 {[%emt 0:01:35]} 26. b4 {[%emt 0:05:38]} axb4 {[%emt 0:04:40]} 27. Nxb4 {[%emt 0:00:55]} Bb7 {[%emt 0:00:41]} 28. Ra1 {[%emt 0:01:01]} Ra8 {[%emt 0:02:09]} 29. Ba6 {[%emt 0:07:19]} Bb6 {[%emt 0:09:51]} 30. c3 {[%emt 0:02:00]} Bxa6 {[%emt 0:00:31]} 31. Rxa6 {[%emt 0:00:32]} Rxa6 {[%emt 0:00:25]} 32. Nxa6 {[%emt 0:00:10]} g5 {[%emt 0:03:59]} 33. g4 {[%emt 0:03:22]} hxg4 $11 {[%emt 0:02:17]} 34. fxg4 {[%emt 0:00:07]} f5 {[%emt 0:00:08]} 35. exf5 {[%emt 0:02:07]} exf5 {[%emt 0:00:06]} 36. gxf5 {[%emt 0:02:11]} g4 {[%emt 0:03:12]} 37. Nb4 {[%emt 0:02:23]} Bg1 {[%emt 0:02:57]} 38. Nd5+ {[%emt 0:01:33]} Kf7 {[%emt 0:02:18]} 39. Kc2 {[%emt 0:01:38]} Bxh2 {[%emt 0:03:34]} 1/2-1/2

[Event "Germany Countries-chT Youth 2022"]
[Site "Wiesbaden"]
[Date "2022.10.02"]
[Round "4"]
[White "Uhlmann, Tim"]
[Black "von Mettenheim, Johannes"]
[Result "0-1"]
[ECO "B01"]
[WhiteElo "1841"]
[BlackElo "2231"]
[Annotator "TA"]
[PlyCount "100"]
[EventDate "2022.09.28"]
[EventType "team-tourn"]
[EventRounds "7"]
[EventCountry "GER"]
[SourceTitle "playchess.com"]
[Source "ChessBase"]
[SourceQuality "1"]
[TimeControl "40/5400+30:1800+30"]

{[%evp 14,99,16,0,8,0,11,-18,0,-3,-8,-32,-22,-11,-13,-25,-19,-34,-44,-34,-5,-39,-28,-58,-58,-50,-62,-59,-15,-14,-16,-27,-24,-42,-29,-47,-55,-61,-62,-64,-39,-59,-70,-65,0,-2,0,0,0,0,0,-17,-21,-35,-16,-72,-54,-68,0,0,0,-5,0,0,0,0,0,-7,0,0,0,0,0,-14,-14,-14,-14,-18,-18,-139,-131,-332,-317,-12841,-12842,-29998,-29999,-29999]} 1. e4 {[%emt 0:00:03]} c6 {[%emt 0:00:07]} 2. c4 {[%emt 0:00:03]} d5 {[%emt 0:00:06]} 3. exd5 {[%emt 0:00:05]} Nf6 {[%emt 0:00:15]} 4. Nc3 {[%emt 0:00:07]} cxd5 {[%emt 0:00:06]} 5. cxd5 {[%emt 0:00:06]} Nxd5 {[%emt 0:00:24]} 6. Nf3 {[%emt 0:00:17]} Nxc3 {[%emt 0:00:30]} 7. bxc3 {[%emt 0:00:08]} g6 {[%emt 0:00:25]} 8. d4 {[%emt 0:00:18]} Bg7 {[%emt 0:00:22] B10: Caro-Kann: 2 d3 and 2 c4.} 9. Bb5+ {[%emt 0:00:43]} Bd7 {[%emt 0:00:45] [#]} 10. Bxd7+ $146 {[%emt 0:01:10]} ({Predecessor:} 10. Bd3 O-O 11. O-O Nc6 12. Re1 Bg4 13. h3 Bxf3 14. Qxf3 Qa5 15. Bb2 e6 16. h4 {½-½ (27) Zvjaginsev,V (2659)-Jakovenko,D (2713) Khanty-Mansiysk 2013}) 10... Nxd7 {[%emt 0:01:22] The position is equal.} 11. O-O {[%emt 0:00:21]} O-O {[%emt 0:00:28]} 12. Bf4 {[%emt 0:00:41]} Rc8 {[%emt 0:01:56]} 13. Qb3 {[%emt 0:01:03]} Nb6 {[%emt 0:02:05]} 14. Be5 {[%emt 0:01:00]} Qd5 {[%emt 0:03:16]} 15. Bxg7 {[%emt 0:01:26]} Kxg7 {[%emt 0:00:06]} 16. Qa3 {[%emt 0:03:03][%csl LRa7,LRe7]} Nd7 {[%emt 0:10:44]} 17. Rae1 {[%emt 0:13:10]} e6 {[%emt 0:02:23]} 18. Ne5 {[%emt 0:00:31]} a6 {[%emt 0:06:45]} 19. Qb2 {[%emt 0:07:52]} Nxe5 {[%emt 0:11:41]} (19... b5 {with more complications.} 20. a4 Nb6 21. axb5 axb5 22. Qb4 Rc7) 20. Rxe5 {[%emt 0:00:11]} Qd7 {[%emt 0:00:54]} 21. d5 {[%emt 0:04:58]} exd5 {[%emt 0:01:19]} 22. Rxd5 {[%emt 0:00:10]} Qc6 {[%emt 0:00:29]} 23. Rd3 {[%emt 0:01:21]} Qc4 {[%emt 0:03:22]} 24. Re3 {[%emt 0:02:04]} b5 {[%emt 0:01:05]} 25. h3 {[%emt 0:02:26]} Rfd8 {[%emt 0:07:00]} 26. Rfe1 {[%emt 0:04:05]} Rd6 {[%emt 0:04:51] Black is more active.} 27. Rf3 {[%emt 0:01:19]} Rcd8 {[%emt 0:02:17]} 28. Qb3 {[%emt 0:03:47]} Qc7 {[%emt 0:04:56] Prevents Re7.} (28... Re6 $15 29. Rxe6 Qxe6) 29. a4 $11 {[%emt 0:06:18]} Rb8 {[%emt 0:04:53][%cal Bd8b8,Bb8b5,Bb5c5][%mdl 32]} 30. axb5 {[%emt 0:02:07]} Rxb5 {[%emt 0:00:23]} 31. Qa2 {[%emt 0:04:05]} Rc5 {[%emt 0:01:17]} 32. Rfe3 {[%emt 0:01:23] Threatens to win with Re7.} Rf6 {[%emt 0:02:37]} 33. Qb2 {[%emt 0:03:08]} Qc6 {[%emt 0:05:29]} 34. Rg3 {[%emt 0:07:33]} (34. f3 $11 {remains equal.}) 34... Rcf5 {[%emt 0:05:28]} 35. Re2 {[%emt 0:03:51][%cal Be1e2,Be2d2,Bd2d3][%mdl 32]} Qd6 {[%emt 0:00:44]} ({Black should try} 35... a5 $15) 36. c4 {[%emt 0:06:14]} h5 {[%emt 0:09:05]} 37. Rc3 {[%emt 0:07:20]} Qd1+ {[%emt 0:01:38]} 38. Kh2 {[%emt 0:00:10]} Qd4 {[%emt 0:00:16][%cal Rf5f2]} 39. Rcc2 {[%emt 0:00:52]} Qc5 {[%emt 0:00:51]} 40. Red2 {[%emt 0:03:50]} Re5 {[%emt 0:02:58]} 41. Rd3 {[%emt 0:41:08]} Qc7 {[%emt 0:32:37]} 42. g3 {[%emt 0:00:00]} h4 {[%emt 0:00:00]} 43. Rd5 {[%emt 0:00:00]} hxg3+ {[%emt 0:00:00]} 44. fxg3 {[%emt 0:00:00]} Re3 {[%emt 0:00:00]} 45. Rg5 {[%emt 0:00:00]} Ref3 {[%emt 0:00:00]} 46. Qe5 {[%emt 0:00:00] [#] Inhibits a5.} (46. c5 $11) 46... Qb6 $1 $40 {[%emt 0:00:00][%mdl 128] Black has strong attack.} 47. c5 $2 {[%emt 0:00:00] [#] Now White is beyond hope.} (47. Rg2 $17) 47... Qb1 $1 $19 {[%emt 0:00:00]} 48. Rd2 {[%emt 0:03:31]} (48. Qb2 Qe1 49. Re2) 48... Rf1 {[%emt 0:00:00] ( -> ...Rh1+)} 49. Qe3 {[%emt 0:00:28]} Rh1+ {[%emt 0:00:00]} 50. Kg2 {[%emt 0:00:16]} Qf1# {Weighted Error Value: White=0.41/Black=0.09 (flawless)} 0-1